Cogmind - Beta 10.2 @@@ ROGUE MODE // 2021.05.17 @ 19:12:43 Player: Trantor Result: Destroyed by as-93171 with Assembled Blade Performance ------------- Evolutions (1) 500 Regions Visited (4) 800 Robots Destroyed (68) 340 Value Destroyed (1608) 1608 Prototype IDs (4) 80 Alien Tech Used (0) 0 Bonus (-4) -4 TOTAL SCORE: 3324 Bonus ------- Follower Combat Kills 28 Friendly Fire -32 Cogmind --------- Core Integrity 0/400 Matter 203/300 Energy 288/290 System Corruption 0% Temperature Cool (6) Movement Treading (165) Ox1 Location -9/Mines Parts ------- > --- POWER (1) -------- Improved Deuterium Engine > --- PROPULSION (3) --- Advanced Treads Advanced Treads > --- UTILITY (3) ------ High-capacity Storage Unit Improved Sensor Array Hacking Suite > --- WEAPON (2) ------- High-powered Shotgun High-powered Shotgun > --- INVENTORY (12) --- Improved Ion Engine Light Nuclear Core Advanced Treads Medium Storage Unit Improved Targeting Computer Transmission Jammer Light Armor Plating Improved Medium Armor Plating Improved Assault Rifle High-powered Shotgun Mini Grenade Launcher Chainsword Peak State ------------ > --- POWER ------------ Improved Deuterium Engine > --- PROPULSION ------- Advanced Treads Advanced Treads Advanced Treads > --- UTILITY ---------- High-capacity Storage Unit Improved Sensor Array Hacking Suite > --- WEAPON ----------- High-powered Shotgun High-powered Shotgun > --- INVENTORY -------- Improved Ion Engine Light Nuclear Core Advanced Treads Medium Storage Unit Improved Targeting Computer Transmission Jammer Light Armor Plating Improved Medium Armor Plating Improved Assault Rifle High-powered Shotgun Mini Grenade Launcher Chainsword [Rating: 28] Favorites ----------- Power Heavy Ion Engine Engine Heavy Ion Engine Propulsion Light Treads Treads Light Treads Leg Aluminum Leg Wheel Compact Wheel Hover Unit Hover Unit Utility Light Armor Plating Device Improved Sensor Array Storage High-capacity Storage Unit Hackware Hacking Suite Protection Light Armor Plating Weapon Improved Assault Rifle Ballistic Gun Improved Assault Rifle Launcher Grenade Launcher Build | -11 -10 -10 -9 -9 ------- Run | Scr Mat Min Mat Min Slots Evolved 2 | . . . 2 . Power . | . . . . . Propulsion 1 | . . . 1 . Utility 1 | . . . 1 . Weapon . | . . . . . Parts Attached 70 | . 22 4 42 2 Power 6 | . 2 1 2 1 Engine 6 | . 2 1 2 1 Core . | . . . . . Reactor . | . . . . . Propulsion 32 | . 11 . 21 . Treads 20 | . 2 . 18 . Leg 1 | . 1 . . . Wheel 7 | . 4 . 3 . Hover 4 | . 4 . . . Flight . | . . . . . Utility 12 | . 3 1 7 1 Device 1 | . . . . 1 Storage 2 | . 2 . . . Processor . | . . . . . Hackware 1 | . . . 1 . Protection 8 | . 1 1 6 . Artifact . | . . . . . Weapon 20 | . 6 2 12 . Energy Gun . | . . . . . Energy Cannon . | . . . . . Ballistic Gun 17 | . 5 1 11 . Ballistic Cannon . | . . . . . Launcher 3 | . 1 1 1 . Special Weapon . | . . . . . Impact Weapon . | . . . . . Slashing Weapon . | . . . . . Piercing Weapon . | . . . . . Special Melee Weapon . | . . . . . Unidentified Prototypes 2 | . . . 2 . Parts Lost 11 | . 3 . 7 1 Power 1 | . . . 1 . Propulsion 5 | . 2 . 2 1 Utility 2 | . . . 2 . Weapon 3 | . 1 . 2 . Highest Loss Streak 3 | . 1 . 3 1 Average Slot Usage (%) 97 | . 96 100 96 99 Engine 11 | . 14 14 10 11 Treads 15 | . 5 . 20 32 Wheel 11 | . 12 28 9 . Hover 1 | . 8 . . . Storage 12 | . 14 14 11 11 Hackware 7 | . . . 10 11 Protection 10 | . 11 14 10 4 Ballistic Gun 23 | . 27 27 21 22 Naked Turns . | . . . . . Heaviest Build 49 | 12 42 46 49 49 Greatest Support 66 | 20 40 32 66 66 Greatest Overweight (x) 2 | . 2 1 2 . Average Overweight (x) . | . . 1 . . Largest Inventory Capacity 12 | . 12 12 12 12 Average Capacity 11 | . 8 12 12 12 Most Carried 12 | . 7 12 12 12 Average Carried 10 | . 5 11 11 11 Final Capacity 12 | 6 12 12 12 12 Final Carried 12 | 6 7 12 12 12 Class Distribution -------------------- 59% | Mutant 40% | Scavenger-Mutant Dominant Class ---------------- Mutant | -10/Materials Mutant | -10/Mines Scavenger-Mutant | -9/Materials Mutant | -9/Mines Resources | -11 -10 -10 -9 -9 ----------- Run | Scr Mat Min Mat Min Matter Collected 1967 | 200 439 64 1226 38 Remotely . | . . . . . Salvage Created 2460 | . 513 23 1852 72 Parts 158 | . 40 6 109 3 Haulers Intercepted 7 | . 2 . 5 . Recyclers Shooed . | . . . . . Parts Field Recycled . | . . . . . Retrieved Matter . | . . . . . Parts Self-Destructed . | . . . . . Prevented . | . . . . . Kills | -11 -10 -10 -9 -9 ------- Run | Scr Mat Min Mat Min Combat Hostiles Destroyed 55 | . 13 3 32 7 Guns 52 | . 13 . 32 7 AOE 3 | . . 3 . . Classes Destroyed 10 | . 6 1 2 1 Worker 1 | . 1 . . . Builder 2 | . . 1 1 . Hauler 7 | . 2 . 5 . Recycler 3 | . . . 3 . Operator 2 | . 1 . 1 . Watcher 2 | . 1 . 1 . Swarmer 17 | . 6 3 5 3 Grunt 25 | . 7 . 18 . Sentry 9 | . . . 9 . Assembled 4 | . . . . 4 Best Kill Streak 7 | . 3 4 4 7 Combat Bots Only 7 | . 3 3 4 7 Max Kills in Single Turn 2 | . 1 2 2 2 Gunslinging 1 | . . . . 1 Exploded 2 | . . 2 . . Melee . | . . . . . Uniques/NPCs Destroyed . | . . . . . Combat | -11 -10 -10 -9 -9 -------- Run | Scr Mat Min Mat Min Damage Taken 3002 | . 612 108 1622 660 Core 585 | . 141 35 330 79 Absorbed by Shields . | . . . . . Core Remaining (%) 64 | 100 . 29 . . Volleys Fired 233 | . 78 5 138 12 Largest 2 | . 2 1 2 2 Hottest 50 | . 40 30 50 50 Shots Fired 454 | . 153 5 272 24 Gun 448 | . 152 . 272 24 Cannon . | . . . . . Launcher 6 | . 1 5 . . Special . | . . . . . Kinetic 448 | . 152 . 272 24 Thermal . | . . . . . Explosive 6 | . 1 5 . . Electromagnetic . | . . . . . Robot Hit Streak 23 | . 10 1 23 7 Robot Miss Streak 7 | . 7 6 4 3 Penetration Max . | . . . . . Secondary Targets 12 | . 4 . 3 5 Max Gunslinging Chain 1 | . 1 . 1 1 Shots Hit Robots 301 | . 83 1 197 20 Core Hits 118 | . 31 6 71 10 Critical Hits 2 | . 1 . 1 . Critical Kills 2 | . 1 . 1 . Critical Parts Destroyed . | . . . . . Melee Attacks . | . . . . . Impact . | . . . . . Slashing . | . . . . . Piercing . | . . . . . Sneak Attacks . | . . . . . Combat Hostiles . | . . . . . Follow-up Attacks . | . . . . . Damage Inflicted 4074 | . 796 148 2808 322 Guns 3889 | . 760 . 2807 322 Cannons . | . . . . . Explosions 184 | . 36 148 . . Melee . | . . . . . Ramming 1 | . . . 1 . Kinetic 3889 | . 760 . 2807 322 Thermal . | . . . . . Explosive 184 | . 36 148 . . Electromagnetic . | . . . . . Impact . | . . . . . Slashing . | . . . . . Piercing . | . . . . . Highest Corruption 4 | . 4 4 . . Average Corruption 4 | . 4 4 . . Corruption Purged . | . . . . . Effects 29 | . 20 9 . . Message Errors 5 | . 4 1 . . Matter Fused 6 | . 3 3 . . Heat Flow Errors 6 | . 3 3 . . Energy Discharges 5 | . 4 1 . . Data Loss (minor) 2 | . 1 1 . . Targeting Errors 3 | . 3 . . . Weapon Failures 2 | . 2 . . . Overload Shots . | . . . . . Overflow Damage . | . . . . . Projectiles . | . . . . . Explosions . | . . . . . Melee . | . . . . . Knockbacks . | . . . . . Impact . | . . . . . Kinetic . | . . . . . Secondary . | . . . . . Self-Inflicted Damage 34 | . . 34 . . Shots 2 | . . 2 . . Rammed 2 | . . . 2 . Targets Rammed 2 | . . . 2 . Kicked . | . . . . . Crushed . | . . . . . Highest Temperature 243 | . 243 178 10 75 Average Temperature 30 | . 35 71 3 31 Received Heat Transfer 1080 | . 195 . 645 240 Siege Activations . | . . . . . Robots Corrupted . | . . . . . Combat Hostiles . | . . . . . Parts Fried . | . . . . . Impact Corruptions . | . . . . . Robots Melted . | . . . . . Combat Hostiles . | . . . . . Parts Melted . | . . . . . Heat Transferred . | . . . . . Parts Sabotaged . | . . . . . Parts Stolen . | . . . . . Parts Stripped . | . . . . . Power Chain Reactions . | . . . . . Missiles Intercepted . | . . . . . Alert | -11 -10 -10 -9 -9 ------- Run | Scr Mat Min Mat Min Peak Influence 262 | . 222 153 262 137 Initial 33 | . . 33 . 27 Average 90 | . 84 33 107 90 Maximum Alert Level 1 | . 1 . 1 . Low Security (%) 91 | . 92 100 86 100 Level 1 8 | . 7 . 13 . Level 2 . | . . . . . Level 3 . | . . . . . Level 4 . | . . . . . Level 5 . | . . . . . High Security . | . . . . . Max Security . | . . . . . Squads Dispatched 7 | . 3 . 3 1 Investigation 2 | . . . 1 1 Extermination . | . . . . . Reinforcement 5 | . 3 . 2 . Assault . | . . . . . Garrison . | . . . . . Intercept . | . . . . . Construction Impeded . | . . . . . Haulers Reinforced . | . . . . . Stealth | -11 -10 -10 -9 -9 --------- Run | Scr Mat Min Mat Min Distress Signals 6 | . 1 . 5 . Communications Jammed . | . . . . . Distress Signals . | . . . . . Times Spotted 108 | . 25 3 58 22 Peak Tracking Total 20 | . 3 3 6 20 Tactical Retreats 5 | . . . 1 4 Traps | -11 -10 -10 -9 -9 ------- Run | Scr Mat Min Mat Min Traps Triggered 8 | . 2 . 6 . Indirectly . | . . . . . Trap Hack Attempts . | . . . . . Triggered . | . . . . . Disarmed . | . . . . . Reprogrammed . | . . . . . Reused . | . . . . . Traps Extracted . | . . . . . Installed . | . . . . . Triggered . | . . . . . Machines | -11 -10 -10 -9 -9 ---------- Run | Scr Mat Min Mat Min Machines Disabled 4 | . . 2 1 1 Max in Single Turn 2 | . . 2 1 . Machines Sabotaged . | . . . . . Garrisons Compromised . | . . . . . Overloaded Fab Kills . | . . . . . Fab Network Shutdowns . | . . . . . Hacking | -11 -10 -10 -9 -9 --------- Run | Scr Mat Min Mat Min Machines Accessed 15 | . 4 . 10 1 Terminals 13 | . 4 . 9 . Fabricators . | . . . . . Repair Stations . | . . . . . Recycling Units . | . . . . . Scanalyzers 1 | . . . 1 . Garrison Access . | . . . . . Total Hacks 44 | . 8 . 35 1 Successful 25 | . . . 24 1 Failed 18 | . 8 . 10 . Catastrophic 3 | . 2 . 1 . Database Lockouts 1 | . . . 1 . Manual 29 | . 7 . 22 . Terminals 36 | . 8 . 28 . Fabricators . | . . . . . Repair Stations . | . . . . . Recycling Units . | . . . . . Scanalyzers 7 | . . . 7 . Garrison Access . | . . . . . Terminal Hacks 13 | . . . 12 1 Robot Analysis 3 | . . . 3 . Prototype ID Bank 2 | . . . 2 . Open Door 1 | . . . . 1 Branch Access Points 1 | . . . 1 . Alert Level 1 | . . . 1 . Unreport Threat 3 | . . . 3 . Hauler Manifests 1 | . . . 1 . Registered Components 1 | . . . 1 . Fabricator Hacks . | . . . . . Repair Station Hacks . | . . . . . Recycling Unit Hacks . | . . . . . Scanalyzer 7 | . . . 7 . Insert Component 3 | . . . 3 . Analyze 4 | . . . 4 . Garrison Access Hacks . | . . . . . Unauthorized Hacks 5 | . . . 5 . Terminals 5 | . . . 5 . Assimilate 3 | . . . 3 . Botnet 1 | . . . 1 . Operators 1 | . . . 1 . Fabricators . | . . . . . Repair Stations . | . . . . . Recycling Units . | . . . . . Scanalyzers . | . . . . . Garrison Access . | . . . . . Data Cores Recovered . | . . . . . Used . | . . . . . Hacking Detections 13 | . 4 . 9 . Full Trace Events . | . . . . . Feedback Events . | . . . . . Feedback Blocked . | . . . . . Robot Schematics Acquired . | . . . . . Robots Built . | . . . . . Matter . | . . . . . Time . | . . . . . Total Robot Build Rating . | . . . . . Part Schematics Acquired 3 | . . . 3 . Parts Built . | . . . . . Matter . | . . . . . Time . | . . . . . Total Part Build Rating . | . . . . . Parts Repaired . | . . . . . Time . | . . . . . Parts Recycled . | . . . . . Recycled Matter . | . . . . . Retrieved Matter . | . . . . . Retrieved Components . | . . . . . Parts Scanalyzed 3 | . . . 3 . Part Schematics Acquired 3 | . . . 3 . Parts Damaged . | . . . . . Bothacking | -11 -10 -10 -9 -9 ------------ Run | Scr Mat Min Mat Min Used RIF Installer . | . . . . . Robots Hacked . | . . . . . Non-combat . | . . . . . Combat . | . . . . . Robot Hacks Applied . | . . . . . Relay Couplers Released . | . . . . . Robots Rewired . | . . . . . Allies Hacked . | . . . . . Hacks Repelled . | . . . . . Allies | -11 -10 -10 -9 -9 -------- Run | Scr Mat Min Mat Min Total Allies 2 | . . . 1 1 Largest Group 1 | . . . 1 1 Highest-Rated Group 31 | . . . 10 31 Highest-Rated Ally 31 | . . . 10 31 Total Orders . | . . . . . Ally Attacks 6 | . . . . 6 Total Damage 86 | . . . . 86 Kills 4 | . . . . 4 Allies Corrupted . | . . . . . Allies Melted . | . . . . . Intel | -11 -10 -10 -9 -9 ------- Run | Scr Mat Min Mat Min Robot Analysis Total 3 | . . . 3 . Derelict Logs Recovered 3 | . . 2 . 1 Drone Launches . | . . . . . Drone Recoveries . | . . . . . Exploration | -11 -10 -10 -9 -9 ------------- Run | Scr Mat Min Mat Min Turns Passed 5272 | . 1097 721 2875 579 Spaces Moved 3247 | 1 850 621 1416 359 Core . | . . . . . Treads 1552 | . 109 . 1084 359 Legs 32 | 1 31 . . . Wheels 1332 | . 379 621 332 . Hover 331 | . 331 . . . Flight . | . . . . . Fastest Speed 56 | 120 56 110 96 145 Average Speed 128 | 120 96 110 150 145 Slowest Speed 200 | 120 180 110 200 145 Overloaded Moves . | . . . . . Propulsion Burnouts . | . . . . . Robots Hopped . | . . . . . Cave-ins Triggered . | . . . . . Exploration Rate (%) 68 | 2 93 98 95 56 Regions Visited 4 Branch Regions 2 Pre-discovered Areas 2 | . . 1 . 1 Known Exits Taken 2 | . . 1 1 . Unknown Exits Taken 2 | 1 1 . . . Scrap Searched 3 | . . 1 . 2 Spaces Dug . | . . . . . Terrain Destroyed 37 | . 8 29 . . Melee . | . . . . . Projectile . | . . . . . AOE 37 | . 8 29 . . Terrain Rammed . | . . . . . Walls Destroyed . | . . . . . Machines Disabled . | . . . . . Actions | -11 -10 -10 -9 -9 --------- Run | Scr Mat Min Mat Min Total 3948 | . 1001 656 1893 398 Wait 304 | . 23 18 245 18 Move 3243 | . 849 620 1415 359 Hop . | . . . . . Pick Up 34 | . 7 6 18 3 Fast Attach 28 | . 10 . 18 . Attach 11 | . 5 . 6 . Detach 6 | . 5 . 1 . Swap 31 | . 7 4 18 2 Drop 56 | . 17 3 32 4 Fire 233 | . 78 5 138 12 Melee . | . . . . . Ram 1 | . . . 1 . Kick . | . . . . . Crush 1 | . . . 1 . Escape Stasis . | . . . . . Rewire . | . . . . . Trap . | . . . . . Miscellaneous . | . . . . . Route ------- -11/Scrapyard -10/Materials (discovered 5 exits: *Mat x3 / [*Min x2]) -10/Mines (discovered 2 exits: *Mat x2) -9/Materials (discovered 4 exits: [*Mat x3] / *Min) -9/Mines (discovered 1 exit: [*Mat]) History --------- Turn | Location | Event 1 | -11/Scrapyard | Discovered new exit (range 0) 1 | -11/Scrapyard | Entered Materials 75 | -10/Materials | Discovered new exit (range 10) 162 | -10/Materials | Discovered new exit (range 6) 305 | -10/Materials | Discovered new exit (range 10) 309 | -10/Materials | Build established: Mutant 460 | -10/Materials | Discovered new exit (range 3) 964 | -10/Materials | Core integrity fell below 50% 1074 | -10/Materials | Discovered new exit (range 16) 1098 | -10/Materials | Entered Mines 1109 | -10/Mines | Met a Derelict bent on vengeance 1131 | -10/Mines | Identified exit to Materials 1142 | -10/Mines | Discovered exit to Materials (range 11) 1237 | -10/Mines | Joined a pair of Derelicts in attacking an 0b10 outpost 1377 | -10/Mines | Learned location of Zion (-6) 1546 | -10/Mines | Received a Rocket Launcher from a helpful Derelict 1819 | -10/Mines | Entered Materials 1819 | -9/Materials | Evolved 2 slots: Propulsion x1, Utility x1 2007 | -9/Materials | Lost 3 parts (1p1n1w) 2606 | -9/Materials | Discovered new exit (range 15) 2853 | -9/Materials | Build established: Scavenger-Mutant 2866 | -9/Materials | Identified exit to Mines 3134 | -9/Materials | Core integrity fell below 50% 3477 | -9/Materials | Discovered new exit (range 5) 3728 | -9/Materials | Central database locked down 4102 | -9/Materials | Discovered new exit (range 13) 4298 | -9/Materials | Core integrity fell below 20% 4644 | -9/Materials | Build established: Mutant 4694 | -9/Materials | Entered Mines 4697 | -9/Mines | Received a Mining Laser from a helpful Derelict 4822 | -9/Mines | Discovered new exit (range 5) 5014 | -9/Mines | Met a Derelict shopkeep closing up shop 5171 | -9/Mines | Assembled infested the area 5273 | -9/Mines | Destroyed by as-93171 with Assembled Blade Last Messages --------------- 05171_ U-05 Engineer destroyed. 05177_ K-01 Serf collects debris. 05180_ K-01 Serf destroyed. 05238_ S-10 Pest destroyed. 05238_ Switching to secondary target: as-79367. 05241_ S-10 Pest destroyed. 05241_ Switching to secondary target: as-79367. 05241_ Destroyed Asb. Hover Unit. 05244_ S-10 Pest destroyed. 05244_ Switching to secondary target: as-79367. 05244_ as-79367 destroyed. 05246_ S-10 Pest system corrupted by crushing effect. 05247_ S-10 Pest system terminally corrupted. 05250_ as-62379 destroyed. 05250_ Switching to secondary target: as-50614. 05259_ as-42543 destroyed. 05259_ Switching to secondary target: as-31858. 05262_ Acquired 14 matter. 05268_ Adv. Treads destroyed. 05273_ as-31858 destroyed. Map ----- +----------------------------------------------------+ | ????????????##! ##????????????????????# #????? | | ?????????????# / !#??????????????####???# ##???? | | ???????????#### ###????????###### #???# ##??? | | ??????????## X ##???????# #???# #??? | | ??????????# #???????# ##???# #??? | | ??????????# ######### ### ##??### #??? | | ??????????## #?## ##???# #??? | | ???????????## #??## ##??# #??? | | ??###???????# ## ############???# ##?# =#??? | | ?## ##??????# #######??????????????# ###% #??? | | ## #??????# #????????????????????## ![ #??? | | # ##?????# ########??????????????## ### =#??? | | ##????# #??????????????## ### #### | | #????#### ### #????????# ## ## | | ## ##??????# #?# #???####?# ## # | | #### ######## #?# #??## #### ## # | | #??# #?# #### ### ######## # | | #??# ##########?# ## ### ##??????# # | | #??# ##?????????# #?## #???????# # | | ##??# ###???????## #???# ????????# | | ##??## ###??????# ? ##???## ????????### | | ???## ##?????# ## ##?????## ??????????? | | ??## #?????## ### #???????## ?????#####? | | ?## #??????##[#?# #????????##????## ## | | ## ## ##?# ##%###a#?????????????## # | | # = ##?# ##??# %=[%*@a%#?????????????# | | *%##???###???# ########?????????????# | ## | | ##????????????????????????????????????## ##? | | ##??????????????????????????????????????#####?? | | ##?????????????????????????????????????????????? | | ##??????????????????????????????????????????????? | | #???????????????????????????????????????????????? | | #???????????????????????????????????????????????? | | #???????????????????????????????????????????????? | | !#???????????????????????????????????????????????? | | ???????????????????????????????????????????????? | | ???????????????????????????????????????????????? | | ??????????????????????????????????????????????? | | ??????????????????????????????????????????????? | | ??????????????????????????????????????????????? | | ?????????????????????????????????????????????? | | ?????????????????????????????????????????????? | | ?????????????????????????????????????????????? | | ????????????????????????????????????????????? | | ?????????????????????????????????????????????? | | ???????????????????????????????????????????????? | | ?????????????????????????????????????????????????? | | ?????????????????????????????????????????????????? | | ?????????????????????????????????????????????????? | | ?????????????????????????????????????????????????? | +----------------------------------------------------+ Best States ------------- Heat Dissipation 28 Energy Generation 16 Energy Capacity 290 Matter Stores 300 Matter Capacity 300 Sight Range 16 Robot Scan Range 13 Terrain Scan Density 10 Armor Coverage 150 Evasion (%) 53 Recoil Reduction 3 Offensive Hacking 10 Item Schematics ----------------- Imp. Assault Rifle | -9/Materials | Scanalyzed Lgt. Armor Plating | -9/Materials | Scanalyzed Mni. Grenade Launcher | -9/Materials | Scanalyzed Robot Schematics ------------------ None Fabricated ------------ Nothing Alien Tech Used ----------------- None Achievements -------------- None Challenges ------------ None Game ------ Seed ReclamationSubatomicKit Manual? 0 Play Time 00:44:52 Cumulative 107.5 hours Start 2021.05.17 @ 18:16:05 End 2021.05.17 @ 19:12:43 Sessions 5 Manual Loads 0 Difficulty Rogue Special Mode None Game No. 68 Rogue 43 Adventurer 25 Explorer 0 Win Type - Total 0 Types 0/0/0/0/0/0/0/0/0 Lore% 39 Gallery% 39 Achievement% 34 Wizard Run 0 Options --------- ASCII 0 Keyboard 1 Movement Vi Keybinds 1 Fullscreen 2 Font 18/SmallcapsGlow Map View 76x50 Tactical HUD 1 Map Filters NONE Filters NONE Steam 1 RUN: b177279b-423d-489f-a65c-f6fd41f2c86a